bitfinex/quotes_BTCUSD_20240703
["timestamp","ask_amount","ask_price","bid_price","bid_amount"]
[1720038965633,0.01039701,59838.0,59836.0,0.167122]
[1720038965804,0.01039688,59838.0,59835.0,0.167125]
[1720038966006,0.01039688,59837.0,59833.0,0.02092139]
[1720038966212,0.501387,59834.0,59833.0,0.02492139]
[1720038966366,0.51178399,59834.0,59833.0,0.01992139]
[1720038966568,0.51178399,59834.0,59833.0,0.004]
[1720038966569,1.30204199,59834.0,59833.0,0.004]
[1720038966767,1.52234079,59834.0,59833.0,0.004]
[1720038966973,1.90329294,59834.0,59833.0,0.004]
[1720038967170,2.50329294,59834.0,59833.0,0.004]
[1720038967514,2.63755094,59834.0,59833.0,0.004]
[1720038967810,1.68592,59833.0,59832.0,0.00083]
[1720038968020,2.00330994,59833.0,59832.0,0.00083]
[1720038968259,2.30330994,59833.0,59832.0,0.00083]
[1720038968685,2.30969834,59833.0,59832.0,0.00083]
[1720038970068,2.31369834,59833.0,59832.0,0.00183]
[1720038970214,2.31869834,59833.0,59832.0,0.00283]
[1720038970912,2.01869834,59833.0,59832.0,0.00283]
[1720038971472,1.95869834,59833.0,59832.0,0.00283]
[1720038971672,1.5609558,59833.0,59832.0,0.00283]
[1720038971881,1.57343965,59833.0,59832.0,0.00283]
[1720038972117,0.18861485,59833.0,59832.0,0.00283]
[1720038972516,0.52287785,59833.0,59832.0,0.00283]
[1720038972922,0.51787785,59833.0,59832.0,0.00183]
[1720038973315,0.52387785,59833.0,59832.0,0.00283]
[1720038974623,0.52387785,59833.0,59832.0,0.169964]
[1720038974624,0.02248385,59833.0,59832.0,0.169964]
[1720038974864,0.02248385,59833.0,59832.0,0.968533]
[1720038975078,0.02248385,59833.0,59832.0,0.967533]
[1720038975340,0.02115701,59833.0,59832.0,1.301802]
[1720038975453,0.008,59833.0,59832.0,1.301802]
[1720038975658,0.008,59833.0,59832.0,1.636071]
[1720038975880,0.014,59833.0,59832.0,1.636071]
[1720038976324,0.008,59833.0,59832.0,1.636071]
[1720038976534,0.008,59833.0,59832.0,1.7963698]
[1720038976742,0.04992469,59848.0,59842.0,0.334208]
[1720038976943,0.01360615,59847.0,59844.0,0.167099]
[1720038977775,0.01360615,59847.0,59843.0,0.167103]
[1720038977959,0.01039834,59846.0,59843.0,0.167103]
[1720038978190,0.01039834,59847.0,59843.0,0.167103]
[1720038978396,0.01039834,59846.0,59843.0,0.167103]
[1720038978599,0.01039776,59845.0,59843.0,0.167103]
[1720038978705,0.01039776,59844.0,59843.0,0.167103]
[1720038978911,0.01039776,59844.0,59843.0,0.334207]
[1720038979144,0.04993982,59847.0,59844.0,0.1671]
[1720038979346,0.01139761,59846.0,59844.0,0.1671]
[1720038979569,0.01039761,59845.0,59844.0,0.1671]
[1720038979722,0.01039761,59845.0,59843.0,0.002]
[1720038979960,0.06033743,59845.0,59843.0,0.002]
[1720038980157,0.04993982,59845.0,59844.0,0.167101]
[1720038980423,0.04993982,59845.0,59843.0,0.336207]
[1720038980424,0.001,59846.0,59845.0,0.167098]
[1720038980754,0.04993982,59847.0,59845.0,0.167098]
[1720038980950,0.04993982,59847.0,59844.0,0.334202]
[1720038981153,0.04993982,59848.0,59846.0,0.167095]
[1720038981424,0.04993982,59848.0,59845.0,0.167097]
[1720038981425,0.001,59847.0,59845.0,0.167097]
[1720038981579,0.05093982,59847.0,59844.0,0.1671]
[1720038982174,0.04993982,59847.0,59845.0,0.003]
[1720038982578,0.05093982,59847.0,59844.0,0.1671]
[1720038982859,0.04993982,59847.0,59844.0,0.1671]
[1720038983679,0.2033,59848.0,59844.0,0.167099]
[1720038984380,0.01039567,59846.0,59844.0,0.170099]
[1720038984510,0.049923,59848.0,59846.0,0.167095]
[1720038986264,0.049923,59848.0,59846.0,0.367995]
[1720038986467,0.01039372,59847.0,59846.0,0.367995]
[1720038986687,0.01039372,59847.0,59845.0,0.167097]
[1720038986900,0.01039372,59847.0,59846.0,0.003]
[1720038987743,0.01039372,59847.0,59846.0,0.005]
[1720038987932,0.167088,59849.0,59846.0,0.005]
[1720038988161,0.0103914,59848.0,59846.0,0.003]
[1720038988276,0.167088,59849.0,59844.0,0.01592139]
[1720038988494,0.17748145,59848.0,59846.0,0.003]
[1720038988680,0.01039145,59847.0,59846.0,0.003]
[1720038989146,0.01039145,59847.0,59845.0,0.004]
[1720038989438,0.01039145,59847.0,59846.0,0.002]
[1720038989708,1.30535345,59847.0,59846.0,0.005]
[1720038989878,1.03945345,59847.0,59846.0,0.002]
[1720038990331,1.03945345,59847.0,59846.0,0.006]
[1720038990720,1.03945345,59847.0,59846.0,0.004]
[1720038991174,1.03945345,59847.0,59846.0,0.007]
[1720038991386,0.501294,59845.0,59844.0,0.01592139]
[1720038991577,0.51168545,59845.0,59844.0,0.01592139]
[1720038991791,0.17748945,59845.0,59844.0,0.01592139]
[1720038992053,0.17748625,59845.0,59844.0,0.01592139]
[1720038992618,0.17848625,59845.0,59844.0,0.01592139]
[1720038992817,0.01138825,59845.0,59844.0,0.01592139]
[1720038993049,0.01138825,59845.0,59844.0,0.18302239]
[1720038994905,0.01138825,59845.0,59844.0,0.51722439]
[1720038995103,0.01138825,59845.0,59844.0,0.85142639]
[1720038995327,0.01138825,59845.0,59844.0,1.31602639]
[1720038995537,0.001,59845.0,59844.0,1.31602639]
[1720038996604,2.68719298,59850.0,59848.0,0.167089]
[1720038996831,2.68719298,59850.0,59848.0,0.18301039]
[1720038996832,0.0103869,59849.0,59848.0,0.18301039]
[1720038997763,0.0103869,59849.0,59848.0,0.51718939]
[1720038998111,0.73177646,59849.0,59848.0,0.01592139]
[1720038998317,0.73177646,59849.0,59821.0,0.31339582]
[1720038998318,1.470193,59819.0,59809.0,0.15011205]
[1720038998522,1.61668143,59819.0,59815.0,0.12509338]
[1720038998772,1.52236644,59819.0,59815.0,0.12509338]
[1720038998980,1.58236689,59819.0,59815.0,0.12509338]
[1720038999225,1.91670789,59819.0,59815.0,0.12509338]
[1720038999640,1.91870789,59819.0,59818.0,0.07605602]
[1720038999813,1.91670789,59819.0,59818.0,0.07505602]
[1720039000021,1.52236689,59819.0,59818.0,0.07505602]
[1720039000214,1.53617008,59819.0,59818.0,0.07605602]
[1720039000785,1.53617008,59819.0,59818.0,0.07505602]
[1720039001202,1.54117008,59819.0,59818.0,0.07605602]
[1720039001403,1.54117008,59819.0,59818.0,0.001]
[1720039001606,1.54117008,59819.0,59805.0,0.4413]
[1720039001607,0.167207,59807.0,59805.0,0.4413]
[1720039002260,0.167207,59806.0,59805.0,0.4413]
[1720039002927,0.167207,59806.0,59805.0,0.4423]
[1720039003059,0.501621,59806.0,59805.0,0.4423]
[1720039003275,0.501621,59806.0,59805.0,0.4413]
[1720039003511,0.501621,59806.0,59805.0,0.4423]
[1720039003742,0.504621,59806.0,59805.0,0.4433]
[1720039004357,0.504621,59806.0,59805.0,0.4423]
[1720039004555,0.504621,59806.0,59805.0,0.4433]
[1720039004556,0.510621,59806.0,59805.0,0.4433]
[1720039004915,0.507621,59806.0,59805.0,0.4423]
[1720039005274,0.510621,59806.0,59805.0,0.4433]
[1720039005493,0.845035,59806.0,59805.0,0.4423]
[1720039006401,0.848035,59806.0,59805.0,0.4433]
[1720039006642,0.842035,59806.0,59805.0,0.4423]
[1720039007248,0.836035,59806.0,59805.0,0.4413]
[1720039007628,0.842035,59806.0,59805.0,0.4423]
[1720039008037,0.839035,59806.0,59805.0,0.4423]
[1720039008429,0.836035,59806.0,59805.0,0.4423]
[1720039008659,0.845035,59806.0,59805.0,0.4433]
[1720039008886,0.845035,59806.0,59805.0,0.4423]
[1720039009132,0.839035,59806.0,59805.0,0.4413]
[1720039009359,0.842035,59806.0,59805.0,0.4423]
[1720039010060,1.170449,59806.0,59805.0,0.4413]
[1720039010370,1.176449,59806.0,59805.0,0.4423]
[1720039010821,1.176449,59806.0,59805.0,0.4413]
[1720039010822,1.170449,59806.0,59805.0,0.4413]
[1720039011347,1.179449,59806.0,59805.0,0.4433]
[1720039011674,1.176449,59806.0,59805.0,0.4423]
[1720039011877,1.176449,59806.0,59789.0,0.00834]
[1720039011878,0.2645,59790.0,59789.0,0.00834]
[1720039012082,1.84644308,59790.0,59789.0,0.00834]
[1720039012344,1.84644308,59790.0,59774.0,0.00834]
[1720039012345,0.394571,59778.0,59774.0,0.00834]
[1720039012583,1.030027,59778.0,59774.0,0.00834]
[1720039012754,1.4236155,59778.0,59774.0,0.00834]
[1720039012992,1.5839143,59778.0,59774.0,0.00834]
[1720039013206,1.9784853,59778.0,59774.0,0.00834]
[1720039014588,1.9924853,59778.0,59777.0,0.00934]
[1720039014785,2.0024853,59778.0,59777.0,0.01034]
[1720039015010,1.9784853,59778.0,59777.0,0.00834]
[1720039015559,2.0064853,59778.0,59777.0,0.01034]
[1720039015778,1.9924853,59778.0,59777.0,0.00934]
[1720039015978,2.0064853,59778.0,59777.0,0.01034]
[1720039016410,2.0064853,59778.0,59777.0,0.00934]
[1720039016752,1.9924853,59778.0,59777.0,0.00834]
[1720039016954,1.9924853,59778.0,59777.0,0.00934]
[1720039016955,2.0064853,59778.0,59777.0,0.00934]
[1720039017574,2.0164853,59778.0,59777.0,0.01034]
[1720039018039,2.0024853,59778.0,59777.0,0.01034]
[1720039018152,2.0024853,59778.0,59777.0,0.00934]
[1720039018153,1.9924853,59778.0,59777.0,0.00934]
[1720039018355,2.0024853,59778.0,59777.0,0.01034]
[1720039019017,2.01683134,59778.0,59777.0,0.01034]
[1720039019257,2.00683134,59778.0,59777.0,0.00934]
[1720039019427,2.00683134,59778.0,59777.0,0.01034]
[1720039019650,2.01683134,59778.0,59777.0,0.01034]
[1720039019853,2.01683134,59778.0,59777.0,0.00934]
[1720039019854,2.00283134,59778.0,59777.0,0.00934]
[1720039019981,2.00283134,59778.0,59777.0,0.00914]
[1720039020188,2.01683134,59778.0,59777.0,0.01014]
[1720039020389,2.0409881,59778.0,59777.0,0.01014]
[1720039020590,2.0269881,59778.0,59777.0,0.00914]
[1720039021009,2.0409881,59778.0,59777.0,0.01014]
[1720039021223,2.0309881,59778.0,59777.0,0.00914]
[1720039021633,2.02664206,59778.0,59777.0,0.01014]
[1720039022408,2.03678206,59778.0,59777.0,0.01014]
[1720039023231,0.88458376,59778.0,59777.0,0.01014]
[1720039023433,1.194998,59778.0,59777.0,0.01014]
[1720039023633,1.180998,59778.0,59777.0,0.00914]
[1720039023764,1.194998,59778.0,59777.0,0.01014]
[1720039023973,1.184998,59778.0,59777.0,0.00914]
[1720039024177,0.859427,59778.0,59777.0,0.01014]
[1720039024402,0.845427,59778.0,59777.0,0.00914]
[1720039024604,0.855427,59778.0,59777.0,0.00914]
[1720039024855,0.864427,59778.0,59777.0,0.01014]
[1720039025165,0.855427,59778.0,59777.0,0.01014]
[1720039025365,0.864427,59778.0,59777.0,0.01114]
[1720039025577,0.863427,59778.0,59777.0,0.01114]
[1720039026399,0.853427,59778.0,59777.0,0.01014]
[1720039026605,0.835427,59778.0,59777.0,0.00814]
[1720039026811,0.844427,59778.0,59777.0,0.00914]
[1720039027230,0.835427,59778.0,59777.0,0.00814]
[1720039027719,0.840427,59778.0,59777.0,0.00814]
[1720039029480,0.845427,59778.0,59777.0,0.00814]
[1720039029686,0.850427,59778.0,59777.0,0.00814]
[1720039030108,0.845427,59778.0,59777.0,0.00814]
[1720039030542,0.849427,59778.0,59777.0,0.00814]
[1720039030779,0.514856,59778.0,59777.0,0.21874]
[1720039030988,0.504856,59778.0,59777.0,0.21874]
[1720039031214,0.507856,59778.0,59777.0,0.21874]
[1720039031688,0.007,59778.0,59777.0,0.21874]
[1720039031930,0.004,59778.0,59777.0,0.21874]
[1720039032377,0.16728,59780.0,59777.0,0.21974]
[1720039032603,0.16728,59780.0,59777.0,0.21874]
[1720039033097,0.001,59778.0,59777.0,0.22474]
[1720039033333,0.001,59778.0,59777.0,0.22974]
[1720039033784,0.001,59778.0,59777.0,0.22474]
[1720039034265,0.001,59778.0,59777.0,0.22674]
[1720039034969,0.16728,59780.0,59777.0,0.22074]
[1720039035165,0.16728,59780.0,59777.0,0.22374]
[1720039035322,0.167274,59782.0,59777.0,0.388027]
[1720039035536,0.334539,59784.0,59777.0,0.344715]
[1720039035742,0.334539,59784.0,59778.0,0.167284]
[1720039035743,0.1602988,59783.0,59778.0,0.167284]
[1720039038579,0.3285698,59783.0,59778.0,0.167285]
[1720039038942,0.3275698,59783.0,59778.0,0.167285]
[1720039039172,0.3275698,59783.0,59778.0,0.168285]
[1720039039368,0.3275698,59783.0,59778.0,0.33557]
[1720039039369,0.1602988,59783.0,59778.0,0.33557]
[1720039039575,0.4948438,59783.0,59778.0,0.001]
[1720039039774,0.167275,59782.0,59778.0,0.001]
[1720039040198,0.167275,59782.0,59778.0,0.168285]
[1720039040619,0.4948438,59783.0,59778.0,0.168285]
[1720039040620,0.3275708,59783.0,59778.0,0.168285]
[1720039040827,0.3275708,59783.0,59779.0,0.167282]
[1720039041464,0.167275,59782.0,59778.0,0.001]
[1720039041664,0.1612988,59783.0,59779.0,0.167282]
[1720039041876,0.1602988,59783.0,59779.0,0.167282]
[1720039042203,0.1602988,59783.0,59777.0,0.00814]
[1720039042204,0.1612988,59783.0,59780.0,0.167279]
[1720039042357,0.1602988,59783.0,59780.0,0.167279]
[1720039042740,0.1612988,59783.0,59781.0,0.167277]
[1720039043121,0.1612988,59783.0,59780.0,0.334557]
[1720039043328,0.1602988,59783.0,59782.0,0.501822]
[1720039045546,0.1602988,59783.0,59782.0,0.503822]
[1720039045750,0.1602988,59783.0,59782.0,0.504822]
[1720039046677,0.1602988,59783.0,59782.0,0.170274]
[1720039046825,0.1602988,59783.0,59782.0,0.504822]
[1720039047613,0.1602988,59783.0,59782.0,0.83937]
[1720039048967,0.1602988,59783.0,59782.0,0.504822]
[1720039049172,0.1602988,59783.0,59782.0,0.83937]
[1720039049488,0.1602988,59783.0,59782.0,0.504822]
[1720039050019,0.1602988,59783.0,59782.0,0.83937]
[1720039051435,0.1602988,59783.0,59782.0,0.504822]
[1720039053231,0.1602988,59783.0,59782.0,0.83937]
[1720039054247,0.1602988,59783.0,59782.0,0.504822]
[1720039054453,0.19039812,59783.0,59782.0,0.504822]
[1720039055268,0.19023738,59783.0,59782.0,0.504822]
[1720039055998,0.19023738,59783.0,59782.0,0.83937]
[1720039057223,0.19001162,59783.0,59782.0,0.83937]
[1720039057565,0.18999915,59783.0,59782.0,0.83937]
[1720039059599,0.18999915,59783.0,59782.0,0.504822]
[1720039060241,0.18999611,59783.0,59782.0,0.504822]
[1720039061606,0.18999611,59783.0,59782.0,0.83937]
[1720039062861,0.18999611,59783.0,59782.0,0.504822]
[1720039063275,0.16121181,59783.0,59782.0,0.83937]
[1720039063497,0.19027147,59783.0,59782.0,0.83937]
[1720039066538,0.19039764,59783.0,59782.0,0.83937]
[1720039066816,0.19056405,59783.0,59782.0,0.83937]
[1720039068396,0.19056405,59783.0,59782.0,0.504822]
[1720039068873,0.19056405,59783.0,59782.0,0.83937]
[1720039069740,0.16121181,59783.0,59782.0,0.83937]
[1720039069952,0.19064779,59783.0,59782.0,0.83937]
[1720039070192,0.16121181,59783.0,59782.0,0.83937]
[1720039070394,0.19064802,59783.0,59782.0,0.83937]
[1720039070604,0.19064802,59783.0,59782.0,0.83837]
[1720039070805,0.19064802,59783.0,59782.0,0.83637]
[1720039071037,0.19064802,59783.0,59782.0,0.83837]
[1720039071242,0.19064802,59783.0,59782.0,0.84137]
[1720039073283,0.17919588,59783.0,59782.0,0.84137]
[1720039076131,0.18470857,59783.0,59782.0,0.84137]
[1720039078526,0.16121181,59783.0,59782.0,0.84137]
[1720039078740,0.18456802,59783.0,59782.0,0.84137]
[1720039080762,0.18456802,59783.0,59782.0,1.26707]
[1720039081067,0.18456802,59783.0,59782.0,0.84137]
[1720039081699,0.16121181,59783.0,59782.0,0.84137]
[1720039081849,0.1845101,59783.0,59782.0,0.84137]
[1720039082262,0.18409711,59783.0,59782.0,0.84137]
[1720039084201,0.07799104,59787.0,59786.0,0.167263]
[1720039084359,0.2618894,59787.0,59786.0,0.167263]
[1720039084783,0.18389836,59787.0,59786.0,0.167263]
[1720039085754,0.18589836,59787.0,59786.0,0.167263]
[1720039086172,0.18589836,59787.0,59786.0,0.501789]
[1720039086768,0.18889836,59787.0,59786.0,0.501789]
[1720039088933,0.34459836,59787.0,59786.0,0.501789]
[1720039089164,0.46989356,59787.0,59786.0,0.501789]
[1720039089324,0.31419356,59787.0,59786.0,0.501789]
[1720039091225,0.31424644,59787.0,59786.0,0.501789]
[1720039092293,0.31424644,59787.0,59786.0,0.167263]
[1720039092690,0.37361375,59787.0,59786.0,0.167263]
[1720039093538,0.24826567,59787.0,59786.0,0.167263]
[1720039093753,0.24826567,59787.0,59783.0,0.334539]
[1720039094059,0.30634474,59786.0,59785.0,0.167264]
[1720039094193,0.28570778,59786.0,59785.0,0.167264]
[1720039094399,0.36565789,59786.0,59785.0,0.167264]
[1720039094853,0.1602988,59786.0,59785.0,0.167264]
[1720039095094,0.30635697,59786.0,59785.0,0.167264]
[1720039095499,0.30735697,59786.0,59785.0,0.167264]
[1720039095700,0.30735697,59786.0,59785.0,0.501796]
[1720039096264,0.30735697,59786.0,59785.0,0.167266]
[1720039096485,0.18193759,59786.0,59785.0,0.501798]
[1720039096656,0.18393759,59786.0,59785.0,0.501798]
[1720039097471,0.18301724,59786.0,59785.0,0.501798]
[1720039097875,0.18301723,59786.0,59785.0,0.501798]
[1720039100518,0.18350744,59786.0,59785.0,0.501798]
[1720039103183,0.18350744,59786.0,59785.0,0.709898]
[1720039103384,0.18350744,59786.0,59785.0,1.456462]
[1720039103574,0.18442406,59786.0,59785.0,1.04443]
[1720039103778,0.18442406,59786.0,59785.0,0.83633]
[1720039105226,0.18142406,59786.0,59785.0,0.83633]
[1720039106848,0.18229269,59786.0,59785.0,0.83633]
[1720039107075,0.1602988,59786.0,59785.0,0.83633]
[1720039107262,0.1822698,59786.0,59785.0,0.83633]
[1720039108292,0.1602988,59786.0,59785.0,0.83633]
[1720039108487,0.18237812,59786.0,59785.0,0.83633]
[1720039109962,0.18232218,59786.0,59785.0,0.83633]
[1720039112269,0.25741256,59786.0,59785.0,0.501798]
[1720039112484,0.25740667,59786.0,59785.0,0.501798]
[1720039113132,0.18176999,59786.0,59785.0,0.501798]
[1720039113314,0.25685618,59786.0,59785.0,0.501798]
[1720039114002,0.18176999,59786.0,59785.0,0.501798]
[1720039114773,0.18176999,59786.0,59785.0,0.167266]
[1720039117590,0.167285,59778.0,59777.0,0.00814]
[1720039117806,0.76112599,59778.0,59777.0,0.00814]
[1720039117977,1.08951952,59778.0,59777.0,0.00814]
[1720039118208,0.96435939,59778.0,59777.0,0.00814]
[1720039118446,0.75489672,59778.0,59777.0,0.00814]
[1720039118913,1.08946772,59778.0,59777.0,0.00814]
[1720039119150,1.09046772,59778.0,59777.0,0.00814]
[1720039119410,0.99165533,59778.0,59777.0,0.00814]
[1720039119651,0.99165533,59778.0,59777.0,0.00914]
[1720039119893,0.95687178,59778.0,59777.0,0.00914]
[1720039120139,0.9916551,59778.0,59777.0,0.00914]
[1720039120619,1.09168962,59778.0,59777.0,0.00914]
[1720039121493,1.01897264,59778.0,59777.0,0.00814]
[1720039121917,1.02097264,59778.0,59777.0,0.00814]
[1720039122350,0.92093812,59778.0,59777.0,0.00814]
[1720039122525,1.25543208,59778.0,59777.0,0.00814]
[1720039122773,1.2207258,59778.0,59777.0,0.00814]
[1720039122981,1.25543209,59778.0,59777.0,0.00814]
[1720039123191,1.31543209,59778.0,59777.0,0.00814]
[1720039123403,1.39041437,59778.0,59777.0,0.00814]
[1720039124662,1.18691437,59778.0,59777.0,0.00814]
[1720039125527,1.11193209,59778.0,59777.0,0.00814]
[1720039125736,1.11145057,59778.0,59777.0,0.00814]
[1720039125940,1.1418603,59778.0,59777.0,0.00814]
[1720039127771,1.31396252,59778.0,59777.0,0.00814]
[1720039127979,1.21401454,59778.0,59777.0,0.00814]
[1720039128409,1.1418603,59778.0,59777.0,0.00814]
[1720039128832,1.2018603,59778.0,59777.0,0.00814]
[1720039129409,1.27678418,59778.0,59777.0,0.00814]
[1720039130020,1.21678418,59778.0,59777.0,0.00814]
[1720039131869,1.27678418,59778.0,59777.0,0.00814]
[1720039132206,1.2019297,59778.0,59777.0,0.00814]
[1720039132615,1.1419331,59778.0,59777.0,0.00814]
[1720039133368,1.21686018,59778.0,59777.0,0.00814]
[1720039134409,1.1419331,59778.0,59777.0,0.00814]
[1720039135262,1.14211192,59778.0,59777.0,0.00814]
[1720039136272,1.06461192,59778.0,59777.0,0.00814]
[1720039136472,1.5491371,59778.0,59777.0,0.00814]
[1720039137029,1.6091371,59778.0,59777.0,0.00814]
[1720039138451,1.50220653,59778.0,59777.0,0.00814]
[1720039138617,1.60989546,59778.0,59777.0,0.00814]
[1720039138802,1.54989546,59778.0,59777.0,0.00814]
[1720039139175,1.60989546,59778.0,59777.0,0.00814]
[1720039140640,0.14109866,59778.0,59777.0,0.00814]
[1720039140837,0.03786657,59778.0,59777.0,0.32084]
[1720039141039,0.003,59778.0,59777.0,0.32084]
[1720039141197,0.20516898,59778.0,59777.0,0.32084]
[1720039141402,0.53973998,59778.0,59777.0,0.32084]
[1720039142457,0.20516898,59778.0,59777.0,0.32084]
[1720039143475,0.53973998,59778.0,59777.0,0.32084]
[1720039143884,0.53971917,59778.0,59777.0,0.32084]
[1720039144063,0.53971915,59778.0,59777.0,0.32084]
[1720039144271,0.504856,59778.0,59777.0,0.32084]
[1720039144470,0.53971354,59778.0,59777.0,0.32084]
[1720039145916,0.61252782,59778.0,59777.0,0.32084]
[1720039147060,0.59983465,59778.0,59777.0,0.32084]
[1720039147470,0.89763345,59778.0,59777.0,0.00814]
[1720039147668,2.61629128,59778.0,59777.0,0.00814]
[1720039147886,2.49134645,59778.0,59777.0,0.00814]
[1720039148225,3.33634644,59778.0,59777.0,0.00814]
[1720039148426,3.15170923,59778.0,59777.0,0.00814]
[1720039148569,3.00177544,59778.0,59777.0,0.00814]
[1720039148760,3.00077544,59778.0,59777.0,0.00814]
[1720039148973,2.99877544,59778.0,59777.0,0.00814]
[1720039149168,3.00577544,59778.0,59777.0,0.00914]
[1720039149373,3.01077544,59778.0,59777.0,0.00914]
[1720039149626,2.63327544,59778.0,59777.0,0.00914]
[1720039149827,2.64027544,59778.0,59777.0,0.00914]
[1720039150053,2.59538989,59778.0,59777.0,0.00914]
[1720039150255,2.60938989,59778.0,59777.0,0.01014]
[1720039150888,2.64008239,59778.0,59777.0,0.01014]
[1720039151287,2.94008239,59778.0,59777.0,0.01014]
[1720039153050,2.93950422,59778.0,59777.0,0.01014]
[1720039154279,2.34950422,59778.0,59777.0,0.01014]
[1720039154509,1.93743322,59778.0,59777.0,0.01014]
[1720039154637,2.01493322,59778.0,59777.0,0.01014]
[1720039154843,2.34950422,59778.0,59777.0,0.01014]
[1720039156302,2.2550603,59778.0,59777.0,0.01014]
[1720039156449,2.34937401,59778.0,59777.0,0.01014]
[1720039157026,2.34937182,59778.0,59777.0,0.01014]
[1720039158429,2.4993259,59778.0,59777.0,0.01014]
[1720039158791,2.34937182,59778.0,59777.0,0.01014]
[1720039158994,2.4993259,59778.0,59777.0,0.01014]
[1720039159398,2.49934414,59778.0,59777.0,0.01014]
[1720039159600,2.34937182,59778.0,59777.0,0.01014]
[1720039159804,2.42183675,59778.0,59777.0,0.01014]
[1720039160002,2.49933675,59778.0,59777.0,0.01014]
[1720039160412,2.34937182,59778.0,59777.0,0.01014]
[1720039161865,2.64937182,59778.0,59777.0,0.01014]
[1720039162543,2.64782811,59778.0,59777.0,0.01014]
[1720039162746,2.34782811,59778.0,59777.0,0.01014]
[1720039165663,2.93954625,59778.0,59777.0,0.01014]
[1720039165879,3.03222418,59778.0,59777.0,0.01014]
[1720039167060,2.65472418,59778.0,59777.0,0.01014]
[1720039167269,2.73222418,59778.0,59777.0,0.01014]
[1720039167641,3.03222418,59778.0,59777.0,0.01014]
[1720039168475,2.93954625,59778.0,59777.0,0.01014]
[1720039168823,3.03073282,59778.0,59777.0,0.01014]
[1720039168991,3.03073302,59778.0,59777.0,0.01004]
[1720039169528,3.03073348,59778.0,59777.0,0.01004]
[1720039170314,3.03073348,59778.0,59774.0,0.00834]
[1720039170315,1.865646,59775.0,59774.0,0.00834]
[1720039170517,2.29463203,59775.0,59774.0,0.00834]
[1720039171027,2.59463203,59775.0,59774.0,0.00834]
[1720039171897,2.5034448,59775.0,59774.0,0.00834]
[1720039172113,2.59588077,59775.0,59774.0,0.00834]
[1720039172330,2.21838077,59775.0,59774.0,0.00834]
[1720039172545,2.45986972,59775.0,59774.0,0.00934]
[1720039172765,2.30987876,59775.0,59774.0,0.00934]
[1720039172974,2.31887876,59775.0,59774.0,0.01034]
[1720039174924,2.01887876,59775.0,59774.0,0.01034]
[1720039175286,2.01832384,59775.0,59774.0,0.01034]
[1720039176470,1.89234353,59775.0,59774.0,0.01034]
[1720039177382,2.00161722,59775.0,59774.0,0.01034]
[1720039177979,0.99464242,59775.0,59774.0,0.29844]
[1720039178209,0.023,59775.0,59774.0,0.29844]
[1720039178428,0.1250184,59775.0,59774.0,0.29844]
[1720039178675,0.11534591,59775.0,59774.0,0.29844]
[1720039179282,0.19284591,59775.0,59774.0,0.29744]
[1720039179625,0.16984591,59775.0,59774.0,0.29644]
[1720039179832,0.17684591,59775.0,59774.0,0.29744]
[1720039180033,0.09934591,59775.0,59774.0,0.29744]
[1720039180789,0.10534591,59775.0,59774.0,0.29844]
[1720039181359,0.013,59775.0,59774.0,0.29844]
[1720039181557,0.66658585,59775.0,59774.0,0.29844]
[1720039181957,0.3309078,59775.0,59774.0,0.29844]
[1720039183683,0.4084078,59775.0,59774.0,0.29844]
[1720039184456,0.6654958,59775.0,59774.0,0.29844]
[1720039184865,0.514882,59775.0,59774.0,0.29844]
[1720039185064,0.66757001,59775.0,59774.0,0.29844]
[1720039185261,0.33298201,59775.0,59774.0,0.29844]
[1720039187459,0.180294,59775.0,59774.0,0.29844]
[1720039187667,0.1460988,59775.0,59774.0,0.35844]
[1720039187873,0.16549519,59775.0,59774.0,0.525736]
[1720039188590,0.09048359,59775.0,59774.0,0.35844]
[1720039189062,0.0913966,59775.0,59774.0,0.35844]
[1720039189520,0.19141207,59775.0,59774.0,0.35844]
[1720039190716,0.13332487,59775.0,59774.0,0.35844]
[1720039190947,0.13401465,59775.0,59774.0,0.35844]
[1720039191653,0.30130865,59775.0,59774.0,0.35844]
[1720039192563,0.26000698,59775.0,59774.0,0.35844]
[1720039192763,0.20127438,59775.0,59774.0,0.35844]
[1720039194426,0.20131614,59775.0,59774.0,0.35844]
[1720039194627,0.26007125,59775.0,59774.0,0.35844]
[1720039196663,0.59465925,59775.0,59774.0,0.35844]
[1720039196847,0.59465925,59775.0,59774.0,0.29844]
[1720039197044,0.6039758,59775.0,59774.0,0.29844]
[1720039197504,0.60397572,59775.0,59774.0,0.35844]
[1720039200416,0.57908125,59775.0,59774.0,0.35844]
[1720039200625,0.36941366,59775.0,59774.0,0.35844]
[1720039201171,0.70400166,59775.0,59774.0,0.35844]
[1720039202644,0.70404048,59775.0,59774.0,0.35844]
[1720039203972,0.36945248,59775.0,59774.0,0.35844]
[1720039204703,0.70404048,59775.0,59774.0,0.29844]
[1720039205779,0.70321415,59775.0,59774.0,0.29844]
[1720039206190,0.95040191,59775.0,59774.0,0.01034]
[1720039206399,1.34919044,59775.0,59774.0,0.01034]
[1720039207212,1.50948924,59775.0,59774.0,0.01034]
[1720039207427,1.80928924,59775.0,59774.0,0.01034]
[1720039207577,1.95931759,59775.0,59774.0,0.01034]
[1720039208663,1.80928924,59775.0,59774.0,0.01034]
[1720039208821,1.9592508,59775.0,59774.0,0.01034]
[1720039209224,1.95733736,59775.0,59774.0,0.01034]
[1720039211956,2.15715781,59775.0,59774.0,0.01034]
[1720039212156,2.34784376,59775.0,59774.0,0.01034]
[1720039213946,2.34784376,59775.0,59774.0,0.31304]
[1720039213947,1.20136776,59775.0,59774.0,0.31304]
[1720039214192,0.19867696,59775.0,59774.0,0.31304]
[1720039214485,0.70056075,59775.0,59774.0,0.39319582]
[1720039214702,0.53896556,59775.0,59774.0,0.39319582]
[1720039214974,0.51579501,59775.0,59774.0,0.39319582]
[1720039215213,1.0316926,59775.0,59774.0,0.18114]
[1720039215446,1.0316926,59775.0,59774.0,0.01034]
[1720039215447,0.93173076,59775.0,59774.0,0.01034]
[1720039215670,0.93173076,59775.0,59774.0,0.00934]
[1720039215671,0.92573076,59775.0,59774.0,0.00934]